[Event "*** Qualifier 3: Titled Tuesday 3|2 Blitz"]
[Site "Chess.com"]
[Date "2017.04.18"]
[Round "7"]
[White "djano"]
[Black "Rock700chess"]
[Result "1-0"]
[WhiteElo "2397"]
[BlackElo "2237"]
[TimeControl "180+2"]
[EndTime "14:30:28 PDT"]
[Termination "djano won by resignation"]

1. d4 {[%clk 0:03:02]} 1... Nf6 {[%clk 0:03:00.6]} 2. Bf4 {[%clk 0:03:02.3]}
2... e6 {[%clk 0:03:01.4]} 3. e3 {[%clk 0:03:02.9]} 3... c5 {[%clk 0:03:00.9]}
4. Nd2 {[%clk 0:02:57.4]} 4... d5 {[%clk 0:03:02.5]} 5. c3 {[%clk 0:02:53.5]}
5... Nc6 {[%clk 0:03:04]} 6. Ngf3 {[%clk 0:02:54.1]} 6... Bd6 {[%clk 0:03:02.6]}
7. Bg3 {[%clk 0:02:53.8]} 7... O-O {[%clk 0:03:00.9]} 8. Bd3 {[%clk 0:02:54.8]}
8... b6 {[%clk 0:03:00.5]} 9. Qe2 {[%clk 0:02:36.1]} 9... Bb7 {[%clk 0:03:01.7]}
10. Ne5 {[%clk 0:02:29.5]} 10... Ne7 {[%clk 0:02:57.3]} 11. O-O-O {[%clk
0:02:21.2]} 11... c4 {[%clk 0:02:54.8]} 12. Bc2 {[%clk 0:02:21.7]} 12... b5
{[%clk 0:02:46]} 13. Bh4 {[%clk 0:02:22.1]} 13... Ng6 {[%clk 0:02:43.3]} 14.
Nxg6 {[%clk 0:02:14.7]} 14... hxg6 {[%clk 0:02:45.2]} 15. e4 {[%clk 0:02:10.4]}
15... Be7 {[%clk 0:02:23.6]} 16. e5 {[%clk 0:02:11.2]} 16... Nd7 {[%clk
0:02:22.4]} 17. Bxe7 {[%clk 0:02:09.4]} 17... Qxe7 {[%clk 0:02:24.3]} 18. h4
{[%clk 0:02:11]} 18... b4 {[%clk 0:02:21]} 19. cxb4 {[%clk 0:02:11.6]} 19...
Qxb4 {[%clk 0:02:19.5]} 20. a3 {[%clk 0:02:07.2]} 20... Qb6 {[%clk 0:02:15.2]}
21. h5 {[%clk 0:02:07.4]} 21... Qxd4 {[%clk 0:02:14.7]} 22. hxg6 {[%clk
0:02:02.6]} 22... fxg6 {[%clk 0:02:14.4]} 23. Bxg6 {[%clk 0:01:40.1]} 23... Qg4
{[%clk 0:02:15.1]} 24. Qxg4 {[%clk 0:01:40.2]} 1-0

[Event "*** Qualifier 3: Titled Tuesday 3|2 Blitz"]
[Site "Chess.com"]
[Date "2017.04.18"]
[Round "7"]
[White "woodhy"]
[Black "ChristopherYoo"]
[Result "1-0"]
[WhiteElo "2321"]
[BlackElo "2263"]
[TimeControl "180+2"]
[EndTime "14:31:28 PDT"]
[Termination "woodhy won by resignation"]

1. e4 {[%clk 0:03:02]} 1... c5 {[%clk 0:03:00.1]} 2. Nf3 {[%clk 0:03:02.8]} 2...
d6 {[%clk 0:02:59.7]} 3. d4 {[%clk 0:03:04.7]} 3... cxd4 {[%clk 0:03:00.8]} 4.
Nxd4 {[%clk 0:03:06.6]} 4... Nf6 {[%clk 0:03:02.1]} 5. f3 {[%clk 0:03:07.7]}
5... e5 {[%clk 0:02:55.7]} 6. Bb5+ {[%clk 0:03:07]} 6... Bd7 {[%clk 0:02:54]} 7.
Bxd7+ {[%clk 0:03:07]} 7... Qxd7 {[%clk 0:02:53.3]} 8. Nf5 {[%clk 0:03:08.9]}
8... g6 {[%clk 0:02:51.8]} 9. Ne3 {[%clk 0:02:54.4]} 9... Bg7 {[%clk 0:02:43.1]}
10. O-O {[%clk 0:02:53.5]} 10... Nc6 {[%clk 0:02:42.4]} 11. Nc3 {[%clk
0:02:54.5]} 11... O-O {[%clk 0:02:41.6]} 12. b3 {[%clk 0:02:55.9]} 12... Nd4
{[%clk 0:02:41]} 13. Ne2 {[%clk 0:02:53.2]} 13... d5 {[%clk 0:02:29.4]} 14. Bb2
{[%clk 0:02:26.4]} 14... dxe4 {[%clk 0:02:14.4]} 15. Nxd4 {[%clk 0:02:25.5]}
15... exd4 {[%clk 0:02:14.7]} 16. Bxd4 {[%clk 0:02:26.1]} 16... Rad8 {[%clk
0:01:50.4]} 17. c3 {[%clk 0:02:21.6]} 17... Qc6 {[%clk 0:01:45.6]} 18. Qe2
{[%clk 0:02:14.6]} 18... Rfe8 {[%clk 0:01:39.1]} 19. Rae1 {[%clk 0:02:04.6]}
19... exf3 {[%clk 0:01:35.1]} 20. Qxf3 {[%clk 0:02:06.5]} 20... Qxf3 {[%clk
0:01:24.8]} 21. Rxf3 {[%clk 0:02:08.4]} 21... Re6 {[%clk 0:01:25.9]} 22. Ref1
{[%clk 0:02:04.4]} 22... Rdd6 {[%clk 0:01:13.5]} 23. Nc4 {[%clk 0:02:03.5]}
23... Ra6 {[%clk 0:01:14.6]} 24. a4 {[%clk 0:01:59.1]} 24... Kf8 {[%clk
0:01:03.3]} 25. b4 {[%clk 0:01:45.5]} 25... Ra5 {[%clk 0:01:01.9]} 26. Nxa5
{[%clk 0:01:44.1]} 1-0

[Event "*** Qualifier 3: Titled Tuesday 3|2 Blitz"]
[Site "Chess.com"]
[Date "2017.04.18"]
[Round "7"]
[White "Spartakus1975"]
[Black "fastestmindalive"]
[Result "1-0"]
[WhiteElo "2579"]
[BlackElo "2427"]
[TimeControl "180+2"]
[EndTime "14:31:41 PDT"]
[Termination "Spartakus1975 won by resignation"]

1. e4 {[%clk 0:02:57.1]} 1... c5 {[%clk 0:02:59]} 2. c3 {[%clk 0:02:57]} 2... g6
{[%clk 0:02:56.4]} 3. Nf3 {[%clk 0:02:56.7]} 3... Bg7 {[%clk 0:02:56.6]} 4. d4
{[%clk 0:02:57.4]} 4... cxd4 {[%clk 0:02:58.5]} 5. cxd4 {[%clk 0:02:58.4]} 5...
d5 {[%clk 0:03:00.2]} 6. e5 {[%clk 0:03:00]} 6... Bg4 {[%clk 0:03:01.8]} 7. Bb5+
{[%clk 0:03:00.2]} 7... Nc6 {[%clk 0:03:02.4]} 8. Bxc6+ {[%clk 0:03:01]} 8...
bxc6 {[%clk 0:03:03.3]} 9. Nbd2 {[%clk 0:03:01.8]} 9... e6 {[%clk 0:03:01]} 10.
O-O {[%clk 0:03:00.1]} 10... Ne7 {[%clk 0:03:01.6]} 11. h3 {[%clk 0:03:01.2]}
11... Bxf3 {[%clk 0:03:00.9]} 12. Nxf3 {[%clk 0:03:02.7]} 12... O-O {[%clk
0:03:01.6]} 13. b3 {[%clk 0:03:04.3]} 13... f6 {[%clk 0:02:51.7]} 14. exf6
{[%clk 0:02:58]} 14... Bxf6 {[%clk 0:02:52.6]} 15. Re1 {[%clk 0:02:46]} 15...
Qd7 {[%clk 0:02:50]} 16. Bf4 {[%clk 0:02:28.7]} 16... c5 {[%clk 0:02:38.2]} 17.
Be5 {[%clk 0:02:18.7]} 17... cxd4 {[%clk 0:02:34.2]} 18. Bxf6 {[%clk 0:02:16.3]}
18... Rxf6 {[%clk 0:02:34.7]} 19. Qxd4 {[%clk 0:02:12.5]} 19... Raf8 {[%clk
0:02:35.8]} 20. Ne5 {[%clk 0:02:09.2]} 20... Qd6 {[%clk 0:02:27.7]} 21. Ng4
{[%clk 0:02:09.5]} 21... Kg7 {[%clk 0:02:03.2]} 22. Nxf6 {[%clk 0:02:08.6]}
22... Rxf6 {[%clk 0:02:04]} 23. Qxa7 {[%clk 0:02:09]} 23... Kh6 {[%clk
0:02:03.7]} 24. Qe3+ {[%clk 0:02:00.6]} 24... Kg7 {[%clk 0:02:04.2]} 25. Rac1
{[%clk 0:01:55.4]} 25... d4 {[%clk 0:02:03.3]} 26. Qe5 {[%clk 0:01:51.3]} 26...
Qxe5 {[%clk 0:01:48.2]} 27. Rxe5 {[%clk 0:01:50.8]} 27... Nf5 {[%clk 0:01:48.9]}
28. Rd1 {[%clk 0:01:42.2]} 28... h5 {[%clk 0:01:44.3]} 29. a4 {[%clk 0:01:40]}
29... h4 {[%clk 0:01:44.5]} 30. a5 {[%clk 0:01:41]} 30... Rf7 {[%clk 0:01:26.5]}
31. Rxe6 {[%clk 0:01:40.7]} 31... Rb7 {[%clk 0:01:28.2]} 32. Rb6 {[%clk
0:01:40.1]} 1-0

[Event "*** Qualifier 3: Titled Tuesday 3|2 Blitz"]
[Site "Chess.com"]
[Date "2017.04.18"]
[Round "7"]
[White "Kubas1010"]
[Black "SwiftyMcBishop"]
[Result "1-0"]
[WhiteElo "2419"]
[BlackElo "2315"]
[TimeControl "180+2"]
[EndTime "14:32:36 PDT"]
[Termination "Kubas1010 won by resignation"]

1. d4 {[%clk 0:03:01.9]} 1... d5 {[%clk 0:02:55.8]} 2. c4 {[%clk 0:03:02.6]}
2... dxc4 {[%clk 0:02:53]} 3. Nf3 {[%clk 0:03:00.9]} 3... Nf6 {[%clk 0:02:52.4]}
4. e3 {[%clk 0:03:02.2]} 4... e6 {[%clk 0:02:52.8]} 5. Bxc4 {[%clk 0:03:02.9]}
5... c5 {[%clk 0:02:52.4]} 6. O-O {[%clk 0:03:00.3]} 6... cxd4 {[%clk
0:02:50.6]} 7. Qxd4 {[%clk 0:02:44.3]} 7... Qxd4 {[%clk 0:02:46.3]} 8. Nxd4
{[%clk 0:02:45.2]} 8... Be7 {[%clk 0:02:43.3]} 9. Nc3 {[%clk 0:02:34.7]} 9...
O-O {[%clk 0:02:41.9]} 10. Be2 {[%clk 0:02:33.8]} 10... a6 {[%clk 0:02:38.4]}
11. Bf3 {[%clk 0:02:32.7]} 11... Nbd7 {[%clk 0:02:37.1]} 12. Rd1 {[%clk
0:02:31.9]} 12... Rb8 {[%clk 0:02:31.3]} 13. b3 {[%clk 0:02:28.5]} 13... Ne5
{[%clk 0:02:28]} 14. Be2 {[%clk 0:02:29]} 14... b5 {[%clk 0:02:24.8]} 15. Bb2
{[%clk 0:02:30]} 15... Bb7 {[%clk 0:02:22.2]} 16. a4 {[%clk 0:02:15.2]} 16... b4
{[%clk 0:02:18.9]} 17. Nb1 {[%clk 0:02:13.7]} 17... Rfd8 {[%clk 0:02:14.1]} 18.
Nd2 {[%clk 0:02:05.9]} 18... Rbc8 {[%clk 0:02:09.6]} 19. Kf1 {[%clk 0:01:51.3]}
19... Nc6 {[%clk 0:01:59.5]} 20. Nc4 {[%clk 0:01:46.4]} 20... Nxd4 {[%clk
0:01:56.7]} 21. Bxd4 {[%clk 0:01:46.5]} 21... Ne4 {[%clk 0:01:55]} 22. Rac1
{[%clk 0:01:44.6]} 22... Bc5 {[%clk 0:01:48.9]} 23. Bb2 {[%clk 0:01:06.9]} 23...
Rxd1+ {[%clk 0:01:46]} 24. Rxd1 {[%clk 0:01:07.9]} 24... Kf8 {[%clk 0:01:41.1]}
25. Rc1 {[%clk 0:01:02.3]} 25... Ba7 {[%clk 0:01:30.6]} 26. f3 {[%clk
0:00:57.1]} 26... Nf6 {[%clk 0:01:24.9]} 27. e4 {[%clk 0:00:57.7]} 27... Nd7
{[%clk 0:01:25]} 28. Rd1 {[%clk 0:00:56.2]} 28... Rc7 {[%clk 0:01:22.1]} 29. Nd6
{[%clk 0:00:43.4]} 1-0

[Event "*** Qualifier 3: Titled Tuesday 3|2 Blitz"]
[Site "Chess.com"]
[Date "2017.04.18"]
[Round "7"]
[White "Robin-Side"]
[Black "FearlessKing64"]
[Result "1-0"]
[WhiteElo "2302"]
[BlackElo "2142"]
[TimeControl "180+2"]
[EndTime "14:32:42 PDT"]
[Termination "Robin-Side won by resignation"]

1. e4 {[%clk 0:03:02]} 1... c5 {[%clk 0:02:37]} 2. Nf3 {[%clk 0:03:02.4]} 2...
d6 {[%clk 0:02:36.9]} 3. d4 {[%clk 0:03:03.2]} 3... cxd4 {[%clk 0:02:38.7]} 4.
Nxd4 {[%clk 0:03:04.6]} 4... Nf6 {[%clk 0:02:40.3]} 5. Nc3 {[%clk 0:03:04.5]}
5... a6 {[%clk 0:02:41.8]} 6. Be2 {[%clk 0:03:05.3]} 6... e5 {[%clk 0:02:42.7]}
7. Nb3 {[%clk 0:03:05.6]} 7... Be7 {[%clk 0:02:44.3]} 8. Be3 {[%clk 0:03:05.5]}
8... Be6 {[%clk 0:02:45.2]} 9. O-O {[%clk 0:03:04.1]} 9... Nbd7 {[%clk
0:02:43.8]} 10. f4 {[%clk 0:03:03.3]} 10... exf4 {[%clk 0:02:42.1]} 11. Rxf4
{[%clk 0:03:03.9]} 11... Ne5 {[%clk 0:02:39.7]} 12. Nd5 {[%clk 0:02:50.2]} 12...
Bxd5 {[%clk 0:02:34.9]} 13. exd5 {[%clk 0:02:49.9]} 13... O-O {[%clk 0:02:32.8]}
14. Qd2 {[%clk 0:02:13.1]} 14... Rc8 {[%clk 0:02:27.1]} 15. Raf1 {[%clk
0:02:08.1]} 15... Ng6 {[%clk 0:02:17.9]} 16. Rf5 {[%clk 0:02:01.7]} 16... Nh4
{[%clk 0:01:29]} 17. R5f4 {[%clk 0:02:01.1]} 17... Ng6 {[%clk 0:01:29.4]} 18.
Rb4 {[%clk 0:02:01.9]} 18... Qd7 {[%clk 0:01:24.4]} 19. c3 {[%clk 0:01:56.2]}
19... Rfe8 {[%clk 0:01:24.6]} 20. Bf3 {[%clk 0:01:46.4]} 20... Bf8 {[%clk
0:01:20]} 21. Na5 {[%clk 0:01:29.6]} 21... Rc7 {[%clk 0:01:14]} 22. Nc4 {[%clk
0:01:27.6]} 22... b5 {[%clk 0:01:02.3]} 23. Na5 {[%clk 0:01:12.1]} 23... Nxd5
{[%clk 0:01:02.4]} 24. Bxd5 {[%clk 0:01:10.6]} 24... Ne5 {[%clk 0:01:00.3]} 25.
Bd4 {[%clk 0:01:04.9]} 25... Qg4 {[%clk 0:00:47.5]} 26. Bxe5 {[%clk 0:00:46.7]}
1-0

[Event "*** Qualifier 3: Titled Tuesday 3|2 Blitz"]
[Site "Chess.com"]
[Date "2017.04.18"]
[Round "7"]
[White "XiaoKangZhong"]
[Black "CM_FM_IM_GM"]
[Result "1/2-1/2"]
[WhiteElo "1975"]
[BlackElo "2013"]
[TimeControl "180+2"]
[EndTime "14:32:44 PDT"]
[Termination "Game drawn by agreement"]

1. e4 {[%clk 0:02:55.9]} 1... c6 {[%clk 0:02:59.8]} 2. c4 {[%clk 0:02:56.1]}
2... d5 {[%clk 0:03:00.2]} 3. cxd5 {[%clk 0:02:56.9]} 3... cxd5 {[%clk
0:03:01.2]} 4. exd5 {[%clk 0:02:57.4]} 4... Nf6 {[%clk 0:03:01.8]} 5. Nc3 {[%clk
0:02:56.4]} 5... Nxd5 {[%clk 0:03:02.1]} 6. d4 {[%clk 0:02:56.3]} 6... Nc6
{[%clk 0:03:02]} 7. Nf3 {[%clk 0:02:54.3]} 7... Bg4 {[%clk 0:03:02.6]} 8. Be2
{[%clk 0:02:54.5]} 8... e6 {[%clk 0:03:03.6]} 9. h3 {[%clk 0:02:53.6]} 9... Bh5
{[%clk 0:03:03.8]} 10. Bg5 {[%clk 0:02:47.5]} 10... Be7 {[%clk 0:02:59.7]} 11.
Bxe7 {[%clk 0:02:47.5]} 11... Qxe7 {[%clk 0:03:01.4]} 12. Nxd5 {[%clk
0:02:38.4]} 12... exd5 {[%clk 0:03:01.2]} 13. O-O {[%clk 0:02:39]} 13... O-O
{[%clk 0:03:01.9]} 14. Re1 {[%clk 0:02:38.1]} 14... Qd6 {[%clk 0:03:00.3]} 15.
Qd2 {[%clk 0:02:34.2]} 15... Rfe8 {[%clk 0:02:56.7]} 16. Rad1 {[%clk 0:01:55.6]}
16... Re7 {[%clk 0:02:47.3]} 17. Ne5 {[%clk 0:01:47.2]} 17... Bxe2 {[%clk
0:02:44.9]} 18. Rxe2 {[%clk 0:01:47.8]} 18... Rae8 {[%clk 0:02:44.1]} 19. Rde1
{[%clk 0:01:43]} 19... f6 {[%clk 0:02:40.1]} 20. Nxc6 {[%clk 0:01:28.8]} 20...
bxc6 {[%clk 0:02:40.6]} 21. Rxe7 {[%clk 0:01:23.9]} 21... Rxe7 {[%clk
0:02:41.2]} 22. Rxe7 {[%clk 0:01:22.6]} 22... Qxe7 {[%clk 0:02:43.1]} 23. Qe3
{[%clk 0:01:23.5]} 23... Qxe3 {[%clk 0:02:43.2]} 24. fxe3 {[%clk 0:01:24.4]}
24... Kf7 {[%clk 0:02:45.1]} 25. Kf2 {[%clk 0:01:25.4]} 25... Ke6 {[%clk
0:02:46.5]} 26. Kf3 {[%clk 0:01:26.6]} 26... a5 {[%clk 0:02:40.1]} 27. a4 {[%clk
0:01:24.2]} 27... h5 {[%clk 0:02:38.4]} 28. h4 {[%clk 0:01:24]} 28... g5 {[%clk
0:02:36.1]} 29. g3 {[%clk 0:01:14.5]} 29... Kf5 {[%clk 0:02:34.9]} 30. b3 {[%clk
0:01:10.8]} 30... g4+ {[%clk 0:02:28.9]} 31. Kf2 {[%clk 0:01:10.5]} 31... Ke4
{[%clk 0:02:29.8]} 32. Ke2 {[%clk 0:01:07.6]} 32... f5 {[%clk 0:02:31]} 33. b4
{[%clk 0:01:03]} 33... axb4 {[%clk 0:02:29.9]} 34. a5 {[%clk 0:01:04.3]} 34...
b3 {[%clk 0:02:31.3]} 35. Kd2 {[%clk 0:01:05.7]} 35... Kf3 {[%clk 0:02:30.9]}
36. a6 {[%clk 0:01:06.4]} 36... Kxg3 {[%clk 0:02:32.2]} 37. a7 {[%clk
0:01:07.5]} 37... Kh2 {[%clk 0:02:34.1]} 38. a8=Q {[%clk 0:01:03.3]} 38... g3
{[%clk 0:02:36]} 39. Qb8 {[%clk 0:01:04]} 39... Kh3 {[%clk 0:02:32.6]} 40. Qf4
{[%clk 0:00:50.1]} 40... g2 {[%clk 0:02:27.5]} 41. Qxf5+ {[%clk 0:00:50.5]}
41... Kh2 {[%clk 0:02:28.4]} 42. Qf2 {[%clk 0:00:51.4]} 42... Kh1 {[%clk
0:02:28.8]} 43. Qf3 {[%clk 0:00:52.4]} 43... Kh2 {[%clk 0:02:27.8]} 44. Qf4+
{[%clk 0:00:53.2]} 44... Kh1 {[%clk 0:02:28.9]} 45. Qf3 {[%clk 0:00:54]} 45...
Kh2 {[%clk 0:02:29.7]} 46. Qf2 {[%clk 0:00:51]} 1/2-1/2

[Event "*** Qualifier 3: Titled Tuesday 3|2 Blitz"]
[Site "Chess.com"]
[Date "2017.04.18"]
[Round "7"]
[White "Enzy63"]
[Black "Jamaladam12200620"]
[Result "0-1"]
[WhiteElo "2017"]
[BlackElo "1985"]
[TimeControl "180+2"]
[EndTime "14:32:48 PDT"]
[Termination "Jamaladam12200620 won on time"]

1. d4 {[%clk 0:03:02]} 1... d5 {[%clk 0:02:58.7]} 2. Nf3 {[%clk 0:03:02.6]} 2...
Nf6 {[%clk 0:02:55.4]} 3. c4 {[%clk 0:03:03.1]} 3... dxc4 {[%clk 0:02:51.2]} 4.
e3 {[%clk 0:02:59.7]} 4... c5 {[%clk 0:02:51.7]} 5. Bxc4 {[%clk 0:02:57.7]} 5...
cxd4 {[%clk 0:02:52.3]} 6. O-O {[%clk 0:02:46.3]} 6... e6 {[%clk 0:02:47.2]} 7.
exd4 {[%clk 0:02:40.5]} 7... Nc6 {[%clk 0:02:46.8]} 8. Nc3 {[%clk 0:02:31.6]}
8... Be7 {[%clk 0:02:47.3]} 9. a3 {[%clk 0:02:28.6]} 9... O-O {[%clk 0:02:47.8]}
10. Bg5 {[%clk 0:02:24.9]} 10... h6 {[%clk 0:02:45]} 11. Bh4 {[%clk 0:02:18.4]}
11... a6 {[%clk 0:02:39.1]} 12. Qd3 {[%clk 0:02:14.4]} 12... b5 {[%clk
0:02:34.8]} 13. Bb3 {[%clk 0:02:05.8]} 13... Qb6 {[%clk 0:02:33.5]} 14. Bxf6
{[%clk 0:01:36.3]} 14... Bxf6 {[%clk 0:02:33.7]} 15. d5 {[%clk 0:01:34.5]} 15...
Rd8 {[%clk 0:02:32.7]} 16. Qe4 {[%clk 0:00:37.1]} 16... Na5 {[%clk 0:02:20.8]}
17. Bc2 {[%clk 0:00:32]} 17... Nc4 {[%clk 0:02:01.5]} 18. Qh7+ {[%clk
0:00:31.6]} 18... Kf8 {[%clk 0:02:02.1]} 19. Be4 {[%clk 0:00:24.4]} 19... Bb7
{[%clk 0:01:51.4]} 20. dxe6 {[%clk 0:00:17.8]} 20... fxe6 {[%clk 0:01:51.9]} 21.
Bxb7 {[%clk 0:00:15.8]} 21... Qxb7 {[%clk 0:01:52.2]} 22. Rfe1 {[%clk
0:00:14.1]} 22... Nxb2 {[%clk 0:01:49.5]} 0-1

[Event "*** Qualifier 3: Titled Tuesday 3|2 Blitz"]
[Site "Chess.com"]
[Date "2017.04.18"]
[Round "7"]
[White "sorito"]
[Black "oskariot"]
[Result "0-1"]
[WhiteElo "2407"]
[BlackElo "2444"]
[TimeControl "180+2"]
[EndTime "14:32:52 PDT"]
[Termination "oskariot won by resignation"]

1. d4 {[%clk 0:03:02]} 1... Nf6 {[%clk 0:03:00.4]} 2. Nf3 {[%clk 0:03:03.2]}
2... g6 {[%clk 0:03:01.6]} 3. e3 {[%clk 0:03:04.8]} 3... Bg7 {[%clk 0:03:02.6]}
4. b3 {[%clk 0:03:05.6]} 4... d6 {[%clk 0:03:04.2]} 5. Bb2 {[%clk 0:03:07.1]}
5... O-O {[%clk 0:03:06.1]} 6. Be2 {[%clk 0:03:08.6]} 6... Nbd7 {[%clk
0:03:07.8]} 7. O-O {[%clk 0:03:09.9]} 7... e5 {[%clk 0:03:09.7]} 8. dxe5 {[%clk
0:03:09.3]} 8... Ng4 {[%clk 0:03:10.9]} 9. Nbd2 {[%clk 0:03:04.8]} 9... Ngxe5
{[%clk 0:03:11.9]} 10. Nxe5 {[%clk 0:03:05.6]} 10... Nxe5 {[%clk 0:03:13.8]} 11.
Qc1 {[%clk 0:03:06.1]} 11... h5 {[%clk 0:03:09.4]} 12. c4 {[%clk 0:03:06.6]}
12... h4 {[%clk 0:03:08.6]} 13. h3 {[%clk 0:03:06.4]} 13... Bf5 {[%clk
0:03:09.6]} 14. Bc3 {[%clk 0:03:05.7]} 14... Qf6 {[%clk 0:02:35.5]} 15. Kh1
{[%clk 0:03:00.9]} 15... Qe7 {[%clk 0:02:08]} 16. Qb2 {[%clk 0:03:00.5]} 16...
f6 {[%clk 0:02:03.8]} 17. e4 {[%clk 0:03:01]} 17... Bd7 {[%clk 0:02:04.2]} 18.
f4 {[%clk 0:03:02.1]} 18... Nc6 {[%clk 0:02:05.6]} 19. Bd3 {[%clk 0:03:01.8]}
19... f5 {[%clk 0:02:06.7]} 20. Rae1 {[%clk 0:02:54.1]} 20... Bxc3 {[%clk
0:02:07.2]} 21. Qxc3 {[%clk 0:02:55.8]} 21... Qg7 {[%clk 0:02:08.8]} 22. e5
{[%clk 0:02:49.5]} 22... Rae8 {[%clk 0:02:07.9]} 23. Nf3 {[%clk 0:02:50.6]}
23... dxe5 {[%clk 0:02:08.2]} 24. Nxe5 {[%clk 0:02:49.6]} 24... Nxe5 {[%clk
0:02:09.2]} 25. fxe5 {[%clk 0:02:49.2]} 25... Be6 {[%clk 0:02:04.9]} 26. Qd4
{[%clk 0:02:50.1]} 26... Rd8 {[%clk 0:02:02.7]} 27. Qe3 {[%clk 0:02:39.1]} 27...
c5 {[%clk 0:02:00.7]} 28. Be2 {[%clk 0:02:35.2]} 28... Rd4 {[%clk 0:02:01.3]}
29. Bf3 {[%clk 0:02:35.7]} 29... b6 {[%clk 0:01:57]} 30. Qg5 {[%clk 0:02:31.4]}
30... Rfd8 {[%clk 0:01:51.7]} 31. Bd5 {[%clk 0:02:31.3]} 31... Re8 {[%clk
0:01:41.1]} 32. Rf4 {[%clk 0:02:26.8]} 32... Bxd5 {[%clk 0:01:31.3]} 33. Rxd4
{[%clk 0:02:27.3]} 33... Bxg2+ {[%clk 0:01:31.9]} 34. Qxg2 {[%clk 0:02:25.7]}
34... cxd4 {[%clk 0:01:33.5]} 35. Qd5+ {[%clk 0:02:27.1]} 35... Qf7 {[%clk
0:01:25.6]} 36. Qxd4 {[%clk 0:02:21.1]} 36... f4 {[%clk 0:01:21.1]} 37. Qd6
{[%clk 0:02:11.6]} 37... Qf5 {[%clk 0:01:17.5]} 38. Kh2 {[%clk 0:01:59.7]} 38...
f3 {[%clk 0:01:12.9]} 39. Qd5+ {[%clk 0:01:51.5]} 39... Kg7 {[%clk 0:01:10.4]}
40. e6 {[%clk 0:01:46.2]} 40... Qc2+ {[%clk 0:01:06.3]} 0-1

[Event "*** Qualifier 3: Titled Tuesday 3|2 Blitz"]
[Site "Chess.com"]
[Date "2017.04.18"]
[Round "7"]
[White "kikydu96"]
[Black "biostatistician"]
[Result "1-0"]
[WhiteElo "2364"]
[BlackElo "2455"]
[TimeControl "180+2"]
[EndTime "14:33:23 PDT"]
[Termination "kikydu96 won by resignation"]

1. e4 {[%clk 0:03:02]} 1... e6 {[%clk 0:03:00]} 2. d4 {[%clk 0:03:01.8]} 2... d5
{[%clk 0:03:01.6]} 3. Nc3 {[%clk 0:03:01.9]} 3... Nf6 {[%clk 0:03:00.9]} 4. e5
{[%clk 0:03:03.3]} 4... Nfd7 {[%clk 0:03:00.1]} 5. f4 {[%clk 0:03:04.6]} 5... c5
{[%clk 0:03:02]} 6. Nf3 {[%clk 0:03:05.5]} 6... Nc6 {[%clk 0:03:03.9]} 7. Be3
{[%clk 0:03:06.6]} 7... a6 {[%clk 0:03:05.3]} 8. Qd2 {[%clk 0:02:51.5]} 8... b5
{[%clk 0:03:05.5]} 9. dxc5 {[%clk 0:02:49.5]} 9... Bxc5 {[%clk 0:03:07.4]} 10.
Bd3 {[%clk 0:02:39.2]} 10... Qb6 {[%clk 0:03:07.2]} 11. Bf2 {[%clk 0:02:26.8]}
11... O-O {[%clk 0:03:04.1]} 12. O-O {[%clk 0:02:12.1]} 12... Bxf2+ {[%clk
0:03:04.4]} 13. Rxf2 {[%clk 0:02:13.7]} 13... Nc5 {[%clk 0:03:03.6]} 14. Qe3
{[%clk 0:02:12]} 14... h6 {[%clk 0:02:56.7]} 15. Ne2 {[%clk 0:02:09]} 15... Na4
{[%clk 0:02:53]} 16. Qxb6 {[%clk 0:01:30.6]} 16... Nxb6 {[%clk 0:02:54.9]} 17.
Ned4 {[%clk 0:01:29.9]} 17... Nxd4 {[%clk 0:02:55.1]} 18. Nxd4 {[%clk
0:01:31.8]} 18... Bd7 {[%clk 0:02:54]} 19. b3 {[%clk 0:01:26.8]} 19... b4 {[%clk
0:02:50.6]} 20. f5 {[%clk 0:01:23.1]} 20... exf5 {[%clk 0:02:51.3]} 21. Bxf5
{[%clk 0:01:20.5]} 21... Rae8 {[%clk 0:02:48.2]} 22. Re1 {[%clk 0:01:16.8]}
22... Re7 {[%clk 0:02:44.4]} 23. Bxd7 {[%clk 0:01:12.6]} 23... Rxd7 {[%clk
0:02:37.1]} 24. e6 {[%clk 0:01:11]} 24... fxe6 {[%clk 0:02:37.3]} 25. Rxf8+
{[%clk 0:01:10.5]} 25... Kxf8 {[%clk 0:02:39.2]} 26. Rxe6 {[%clk 0:01:11.6]}
26... Rb7 {[%clk 0:02:31.2]} 27. Kf2 {[%clk 0:00:58.5]} 27... Kf7 {[%clk
0:02:31.1]} 28. Rc6 {[%clk 0:00:58.6]} 28... a5 {[%clk 0:02:22.8]} 29. Rc5
{[%clk 0:00:56.7]} 29... a4 {[%clk 0:02:18.5]} 30. Rb5 {[%clk 0:00:57.9]} 30...
axb3 {[%clk 0:02:19.5]} 31. axb3 {[%clk 0:00:57.5]} 31... Kf6 {[%clk 0:02:17.7]}
32. Rxb4 {[%clk 0:00:56.4]} 32... Ke5 {[%clk 0:02:18.5]} 33. Nf3+ {[%clk
0:00:44]} 33... Kd6 {[%clk 0:02:17.9]} 34. Ke3 {[%clk 0:00:36.7]} 34... Kc5
{[%clk 0:02:18.3]} 35. c3 {[%clk 0:00:31.1]} 35... Re7+ {[%clk 0:02:16.2]} 36.
Kd2 {[%clk 0:00:32.7]} 36... Ra7 {[%clk 0:02:15.7]} 37. Nd4 {[%clk 0:00:29.7]}
37... Ra2+ {[%clk 0:02:14.3]} 38. Nc2 {[%clk 0:00:31.3]} 38... g5 {[%clk
0:02:06]} 39. g4 {[%clk 0:00:25.5]} 39... Rb2 {[%clk 0:02:04.8]} 40. Kc1 {[%clk
0:00:25.3]} 40... Ra2 {[%clk 0:02:05.8]} 41. Kb1 {[%clk 0:00:26.3]} 41... Ra8
{[%clk 0:02:06]} 42. Nd4 {[%clk 0:00:26.4]} 42... Re8 {[%clk 0:02:05.4]} 43.
Rb5+ {[%clk 0:00:27.1]} 43... Kd6 {[%clk 0:02:04]} 44. Rxb6+ {[%clk 0:00:29]}
44... Ke5 {[%clk 0:02:05.6]} 45. Rxh6 {[%clk 0:00:29.1]} 45... Kf4 {[%clk
0:02:05.4]} 46. Re6 {[%clk 0:00:28.9]} 46... Kxg4 {[%clk 0:02:05.7]} 47. Rxe8
{[%clk 0:00:29.3]} 1-0